Workbook

Sheet 部门收支总表
A1: 2020年部门预算收支总表
A2: 填报单位：临湘市市场建设服务中心 | F2: 单位：元
A3: 收入 | C3: 支出(经济分类） | E3: 支出（功能科目）
A4: 一般预算拨款（补助） | B4: 18,360,418.32 | C4: 基本支出 | D4: 15,380,746.52 | E4: 201、一般公共服务支出 | F4: 15,175,408.40
A5: 经费拨款 | B5: 3,360,418.32 | C5: 301、工资福利支出 | D5: 13,721,466.52 | E5: 202、外交支出 | F5: 0.00
A6: 纳入预算管理的非税收入拨款 | B6: 15,000,000.00 | C6: 302、商品和服务支出 | D6: 1,633,000.00 | E6: 203、国防支出 | F6: 0.00
A7: 纳入专户管理的非税收入拨款 | B7: 0.00 | C7: 303、对个人和家庭的补助 | D7: 26,280.00 | E7: 204、公共安全支出 | F7: 0.00
A8: 政府性基金拨款 | B8: 0.00 | C8: 项目支出 | D8: 3,059,671.80 | E8: 205、教育支出 | F8: 0.00
A9: 事业单位经营服务收入 | B9: 80,000.00 | C9: 302、商品和服务支出 | D9: 2,819,671.80 | E9: 206、科学技术支出 | F9: 0.00
A10: 上级补助收入 | B10: 0.00 | C10: 303、对个人和家庭的补助 | D10: 0.00 | E10: 207、文化体育与传媒支出 | F10: 0.00
A11: 附属单位上缴收入 | B11: 0.00 | C11: 307、债务利息及费用支出 | D11: 0.00 | E11: 208、社会保障和就业支出 | F11: 2,142,950.40
A12: 其他收入 | B12: 0.00 | C12: 309、资本性支出（基本建设） | D12: 0.00 | E12: 209、社保基金支出 | F12: 0.00
A13: 上年结转 | B13: 0.00 | C13: 310、资本性支出 | D13: 130,000.00 | E13: 210、医疗卫生与计划生育支出 | F13: 0.00
C14: 311、对企业补助（基本建设） | D14: 0.00 | E14: 211、节能环保支出 | F14: 0.00
C15: 312、对企业补助 | D15: 0.00 | E15: 212、城乡社区支出 | F15: 0.00
C16: 313、对社会保障金补助 | D16: 0.00 | E16: 213、农林水支出 | F16: 0.00
C17: 399、其他支出 | D17: 110,000.00 | E17: 214、交通运输支出 | F17: 0.00
E18: 215、资源勘探信息等支出 | F18: 0.00
E19: 216、商业服务业等支出 | F19: 0.00
E20: 217、金融支出 | F20: 0.00
E21: 219、援助其他地区支出 | F21: 0.00
E22: 220、国土海洋气象等支出 | F22: 0.00
E23: 221、住房保障支出 | F23: 1,122,059.52
E24: 222、粮油物资储备支出 | F24: 0.00
E25: 223、国有资本经营预算支出 | F25: 0.00
E26: 227、预备费 | F26: 0.00
E27: 229、其他支出 | F27: 0.00
E28: 230、转移性支出 | F28: 0.00
E29: 231、债务还本支出 | F29: 0.00
E30: 232、债务付息支出 | F30: 0.00
E31: 233、债务发行费用支出 | F31: 0.00
F32: 0.00
A33: 本年收入合计 | B33: 18,440,418.32 | C33: 本年支出合计 | D33: 18,440,418.32 | E33: 本年支出合计 | F33: 18,440,418.32

Sheet 部门收入总表
A2: 部门收入总体情况表
A3: 单位名称：临湘市市场建设服务中心 | L3: 单位：元
A4: 单位 | C4: 总计 | D4: 一般预算拨款 | F4: 纳入专户管理的非税收入拨款 | G4: 政府性基金拨款 | H4: 事业单位经营服务收入 | I4: 上级补助收入 | J4: 附属单位上缴收入 | K4: 其他收入 | L4: 上年结转
A5: 单位代码 | B5: 单位名称 | D5: 经费拨款 | E5: 纳入预算管理的非税收入拨款
B6: 合计 | C6: =C7 -> 18440418.32 | D6: 3360418.32 | E6: 15000000.00 | F6: 0.00 | G6: 0.00 | H6: 80,000.00 | I6: 0.00 | J6: 0.00 | K6: 0.00 | L6: 0.00
C7: 18440418.32 | D7: 3360418.32 | E7: 15000000.00 | F7: 0.00 | G7: 0.00 | H7: 80,000.00 | I7: 0.00 | J7: 0.00 | K7: 0.00 | L7: 0.00
A8: 801006 | B8: 临湘市商务粮食局 | C8: 18440418.32 | D8: 3360418.32 | E8: 15000000.00 | F8: 0.00 | G8: 0.00 | H8: 80,000.00 | I8: 0.00 | J8: 0.00 | K8: 0.00 | L8: 0.00

Sheet 部门支出总表
A2: 部门支出总体情况表
A3: 单位名称临湘市市场建设服务中心 | L3: 单位：元
A4: 功能科目 | E4: 总计 | F4: 一般预算拨款 | H4: 纳入专户管理的非税收入拨款 | I4: 政府性基金拨款 | J4: 事业单位经营服务收入 | K4: 上级补助收入 | L4: 其他收入
A5: 类 | B5: 款 | C5: 项 | D5: 科目名称 | F5: 经费拨款 | G5: 纳入预算管理的非税收入拨款
D6: 合计 | E6: =E7+E10+E14 -> 18,440,418.32 | F6: 3,360,418.32 | G6: 15,000,000.00 | H6: 0.00 | I6: 0.00 | J6: 80,000.00 | K6: 0.00 | L6: 0.00
A7: 201 | E7: =E8 -> 15,175,408.40 | F7: 3,006,328.08 | G7: 12,089,080.32 | H7: 0.00 | I7: 0.00 | J7: 80,000.00 | K7: 0.00 | L7: 0.00
A8: 201 | B8: 13 | E8: 15,175,408.40 | F8: 3,006,328.08 | G8: 12,089,080.32 | H8: 0.00 | I8: 0.00 | J8: 80,000.00 | K8: 0.00 | L8: 0.00
A9: 201 | B9: 13 | C9: 99 | D9: 其他商贸事务支出 | E9: 15,175,408.40 | F9: 3,006,328.08 | G9: 12,089,080.32 | H9: 0.00 | I9: 0.00 | J9: 80,000.00 | K9: 0.00 | L9: 0.00
A10: 208 | E10: =E11 -> 2,142,950.40 | F10: 202,337.28 | G10: 1,940,613.12 | H10: 0.00 | I10: 0.00 | J10: 0.00 | K10: 0.00 | L10: 0.00
A11: 208 | B11: 5 | E11: =SUM(E12:E13) -> 2,142,950.40 | F11: 202,337.28 | G11: 1,940,613.12 | H11: 0.00 | I11: 0.00 | J11: 0.00 | K11: 0.00 | L11: 0.00
A12: 208 | B12: 5 | C12: 5 | D12: 机关事业单位基本养老保险缴费支出 | E12: 1,496,079.36 | F12: 202,337.28 | G12: 1,293,742.08 | H12: 0.00 | I12: 0.00 | J12: 0.00 | K12: 0.00 | L12: 0.00
A13: 208 | B13: 5 | C13: 6 | D13: 机关事业单位职业年金缴费支出 | E13: 646,871.04 | F13: 0.00 | G13: 646,871.04 | H13: 0.00 | I13: 0.00 | J13: 0.00 | K13: 0.00 | L13: 0.00
A14: 221 | E14: =E15 -> 1,122,059.52 | F14: 151,752.96 | G14: 970,306.56 | H14: 0.00 | I14: 0.00 | J14: 0.00 | K14: 0.00 | L14: 0.00
A15: 221 | B15: 2 | E15: 1,122,059.52 | F15: 151,752.96 | G15: 970,306.56 | H15: 0.00 | I15: 0.00 | J15: 0.00 | K15: 0.00 | L15: 0.00
A16: 221 | B16: 2 | C16: 1 | D16: 住房公积金 | E16: 1,122,059.52 | F16: 151,752.96 | G16: 970,306.56 | H16: 0.00 | I16: 0.00 | J16: 0.00 | K16: 0.00 | L16: 0.00

Sheet 部门支出总表(分类)
A2: 部门支出总表分类
A3: 单位名称：临湘市市场建设服务中心 | R3: 单位：元
A4: 功能科目 | E4: 总计 | F4: 基本支出 | J4: 项目支出
A5: 科目编码 | D5: 科目名称 | F5: 合计 | G5: 工资福利支出 | H5: 一般商品和服务支出 | I5: 对个人和家庭的补助 | J5: 合计 | K5: 商品和服务支出 | L5: 对个人和家庭的补助支出 | M5: 基本建设 | N5: 其他资本性支出 | O5: 对企事业单位的补贴 | P5: 对社保基金的补助 | Q5: 其他支出 | R5: 债务利息及费用支出
A6: 类 | B6: 款 | C6: 项
D7: 合计 | E7: =E8+E11+E15 -> 18440418.32 | F7: 15380746.52 | G7: 13721466.52 | H7: 1633000.00 | I7: 26280.00 | J7: 3059671.80 | K7: 2819671.80 | L7: 0.00 | M7: 0.00 | N7: 130000.00 | O7: 0.00 | P7: 0.00 | Q7: 110000.00 | R7: 0.00
A8: 201 | E8: =E9 -> 15175408.40 | F8: 12115736.60 | G8: 10456456.60 | H8: 1633000.00 | I8: 26280.00 | J8: 3059671.80 | K8: 2819671.80 | L8: 0.00 | M8: 0.00 | N8: 130000.00 | O8: 0.00 | P8: 0.00 | Q8: 110000.00 | R8: 0.00
B9: 13 | E9: 15175408.40 | F9: 12115736.60 | G9: 10456456.60 | H9: 1633000.00 | I9: 26280.00 | J9: 3059671.80 | K9: 2819671.80 | L9: 0.00 | M9: 0.00 | N9: 130000.00 | O9: 0.00 | P9: 0.00 | Q9: 110000.00 | R9: 0.00
A10: 201 | B10: 13 | C10: 99 | D10: 其他商贸事务支出 | E10: 15175408.40 | F10: 12115736.60 | G10: 10456456.60 | H10: 1633000.00 | I10: 26280.00 | J10: 3059671.80 | K10: 2819671.80 | L10: 0.00 | M10: 0.00 | N10: 130000.00 | O10: 0.00 | P10: 0.00 | Q10: 110000.00 | R10: 0.00
A11: 208 | E11: =E12 -> 2142950.40 | F11: 2142950.40 | G11: 2142950.40 | H11: 0.00 | I11: 0.00 | J11: 0.00 | K11: 0.00 | L11: 0.00 | M11: 0.00 | N11: 0.00 | O11: 0.00 | P11: 0.00 | Q11: 0.00 | R11: 0.00
B12: 05 | E12: =SUM(E13:E14) -> 2142950.40 | F12: 2142950.40 | G12: 2142950.40 | H12: 0.00 | I12: 0.00 | J12: 0.00 | K12: 0.00 | L12: 0.00 | M12: 0.00 | N12: 0.00 | O12: 0.00 | P12: 0.00 | Q12: 0.00 | R12: 0.00
A13: 208 | B13: 05 | C13: 05 | D13: 机关事业单位基本养老保险缴费支出 | E13: 1496079.36 | F13: 1496079.36 | G13: 1496079.36 | H13: 0.00 | I13: 0.00 | J13: 0.00 | K13: 0.00 | L13: 0.00 | M13: 0.00 | N13: 0.00 | O13: 0.00 | P13: 0.00 | Q13: 0.00 | R13: 0.00
A14: 208 | B14: 05 | C14: 06 | D14: 机关事业单位职业年金缴费支出 | E14: 646871.04 | F14: 646871.04 | G14: 646871.04 | H14: 0.00 | I14: 0.00 | J14: 0.00 | K14: 0.00 | L14: 0.00 | M14: 0.00 | N14: 0.00 | O14: 0.00 | P14: 0.00 | Q14: 0.00 | R14: 0.00
A15: 221 | E15: =E16 -> 1122059.52 | F15: 1122059.52 | G15: 1122059.52 | H15: 0.00 | I15: 0.00 | J15: 0.00 | K15: 0.00 | L15: 0.00 | M15: 0.00 | N15: 0.00 | O15: 0.00 | P15: 0.00 | Q15: 0.00 | R15: 0.00
B16: 02 | E16: 1122059.52 | F16: 1122059.52 | G16: 1122059.52 | H16: 0.00 | I16: 0.00 | J16: 0.00 | K16: 0.00 | L16: 0.00 | M16: 0.00 | N16: 0.00 | O16: 0.00 | P16: 0.00 | Q16: 0.00 | R16: 0.00
A17: 221 | B17: 02 | C17: 01 | D17: 住房公积金 | E17: 1122059.52 | F17: 1122059.52 | G17: 1122059.52 | H17: 0.00 | I17: 0.00 | J17: 0.00 | K17: 0.00 | L17: 0.00 | M17: 0.00 | N17: 0.00 | O17: 0.00 | P17: 0.00 | Q17: 0.00 | R17: 0.00

Sheet 支出分类（政府预算）
A2: 部门支出总表(按政府预算经济分类)
A3: 单位名称：临湘市市场建设服务中心 | T3: 单位：元
A4: 功能科目 | D4: 功能科目 | E4: 总计 | F4: 机关工资福利支出 | G4: 机关商品和服务支出 | H4: 机关资本性支出（一） | I4: 机关资本性支出（二） | J4: 对事业单位经常性补助 | K4: 对事业单位资本性补助 | L4: 对企业补助 | M4: 对企业资本性支出 | N4: 对个人和家庭的补助 | O4: 对社会保障基金补助 | P4: 债务利息及费用支出 | Q4: 预备费及预留 | R4: 转移性支出 | S4: 债务还本支出 | T4: 其他支出
A5: 类 | B5: 款 | C5: 项
D7: 合计 | E7: =E8+E11+E15 -> 18440418.32 | F7: 0.00 | G7: 0.00 | H7: 0.00 | I7: 0.00 | J7: 18174138.32 | K7: 130000.00 | L7: 0.00 | M7: 0.00 | N7: 26280.00 | O7: 0.00 | P7: 0.00 | Q7: 0.00 | R7: 0.00 | S7: 0.00 | T7: 110000.00
A8: 201 | E8: =E9 -> 15175408.40 | F8: 0.00 | G8: 0.00 | H8: 0.00 | I8: 0.00 | J8: 14909128.40 | K8: 130000.00 | L8: 0.00 | M8: 0.00 | N8: 26280.00 | O8: 0.00 | P8: 0.00 | Q8: 0.00 | R8: 0.00 | S8: 0.00 | T8: 110000.00
A9: 201 | B9: 13 | E9: 15175408.40 | F9: 0.00 | G9: 0.00 | H9: 0.00 | I9: 0.00 | J9: 14909128.40 | K9: 130000.00 | L9: 0.00 | M9: 0.00 | N9: 26280.00 | O9: 0.00 | P9: 0.00 | Q9: 0.00 | R9: 0.00 | S9: 0.00 | T9: 110000.00
A10: 201 | B10: 13 | C10: 99 | D10: 其他商贸事务支出 | E10: 15175408.40 | F10: 0.00 | G10: 0.00 | H10: 0.00 | I10: 0.00 | J10: 14909128.40 | K10: 130000.00 | L10: 0.00 | M10: 0.00 | N10: 26280.00 | O10: 0.00 | P10: 0.00 | Q10: 0.00 | R10: 0.00 | S10: 0.00 | T10: 110000.00
A11: 208 | E11: =E12 -> 2142950.40 | F11: 0.00 | G11: 0.00 | H11: 0.00 | I11: 0.00 | J11: 2142950.40 | K11: 0.00 | L11: 0.00 | M11: 0.00 | N11: 0.00 | O11: 0.00 | P11: 0.00 | Q11: 0.00 | R11: 0.00 | S11: 0.00 | T11: 0.00
A12: 208 | B12: 05 | E12: =SUM(E13:E14) -> 2142950.40 | F12: 0.00 | G12: 0.00 | H12: 0.00 | I12: 0.00 | J12: 2142950.40 | K12: 0.00 | L12: 0.00 | M12: 0.00 | N12: 0.00 | O12: 0.00 | P12: 0.00 | Q12: 0.00 | R12: 0.00 | S12: 0.00 | T12: 0.00
A13: 208 | B13: 05 | C13: 05 | D13: 机关事业单位基本养老保险缴费支出 | E13: 1496079.36 | F13: 0.00 | G13: 0.00 | H13: 0.00 | I13: 0.00 | J13: 1496079.36 | K13: 0.00 | L13: 0.00 | M13: 0.00 | N13: 0.00 | O13: 0.00 | P13: 0.00 | Q13: 0.00 | R13: 0.00 | S13: 0.00 | T13: 0.00
A14: 208 | B14: 05 | C14: 06 | D14: 机关事业单位职业年金缴费支出 | E14: 646871.04 | F14: 0.00 | G14: 0.00 | H14: 0.00 | I14: 0.00 | J14: 646871.04 | K14: 0.00 | L14: 0.00 | M14: 0.00 | N14: 0.00 | O14: 0.00 | P14: 0.00 | Q14: 0.00 | R14: 0.00 | S14: 0.00 | T14: 0.00
A15: 221 | E15: =E16 -> 1122059.52 | F15: 0.00 | G15: 0.00 | H15: 0.00 | I15: 0.00 | J15: 1122059.52 | K15: 0.00 | L15: 0.00 | M15: 0.00 | N15: 0.00 | O15: 0.00 | P15: 0.00 | Q15: 0.00 | R15: 0.00 | S15: 0.00 | T15: 0.00
A16: 221 | B16: 02 | E16: 1122059.52 | F16: 0.00 | G16: 0.00 | H16: 0.00 | I16: 0.00 | J16: 1122059.52 | K16: 0.00 | L16: 0.00 | M16: 0.00 | N16: 0.00 | O16: 0.00 | P16: 0.00 | Q16: 0.00 | R16: 0.00 | S16: 0.00 | T16: 0.00
A17: 221 | B17: 02 | C17: 01 | D17: 住房公积金 | E17: 1122059.52 | F17: 0.00 | G17: 0.00 | H17: 0.00 | I17: 0.00 | J17: 1122059.52 | K17: 0.00 | L17: 0.00 | M17: 0.00 | N17: 0.00 | O17: 0.00 | P17: 0.00 | Q17: 0.00 | R17: 0.00 | S17: 0.00 | T17: 0.00

Sheet 基本-工资福利
A2: 基本支出预算明细表-工资福利
A3: 单位名称：临湘市市场建设服务中心 | U3: 单位：元
A4: 功能科目 | D4: 科目名称 | E4: 总计 | F4: 工资性支出 | K4: 社会保障缴费 | S4: 伙食补贴支出 | U4: 其他工资福利支出
A5: 类 | B5: 款 | C5: 项 | F5: 合计 | G5: 基本工资 | H5: 津贴补贴 | I5: 奖金 | J5: 绩效工资 | K5: 合计 | L5: 基本医疗保险 | M5: 医疗费 | N5: 其他社会保障缴费 | O5: 机关事业单位基本养老保险缴费 | P5: 职业年金 | Q5: 住房公积金 | R5: 公务员医疗补助缴费 | S5: 合计 | T5: 伙食补助费
D6: 合计 | E6: =E7+E10+E14 -> 13383682.84 | F6: 9350496.00 | G6: 5629728.00 | H6: 0.00 | I6: 0.00 | J6: 3720768.00 | K6: 4023186.84 | L6: 654534.72 | M6: 0.00 | N6: 103642.20 | O6: 1496079.36 | P6: 646871.04 | Q6: 1122059.52 | R6: 0.00 | S6: 0.00 | T6: 0.00 | U6: 10000.00
A7: 201 | D7: 其他商贸事务支出 | E7: =E8 -> 10118672.92 | F7: 9350496.00 | G7: 5629728.00 | H7: 0.00 | I7: 0.00 | J7: 3720768.00 | K7: 758176.92 | L7: 654534.72 | M7: 0.00 | N7: 103642.20 | O7: 0.00 | P7: 0.00 | Q7: 0.00 | R7: 0.00 | S7: 0.00 | T7: 0.00 | U7: =U8 -> 10000.00
A8: 201 | B8: 13 | D8: 其他商贸事务支出 | E8: 10118672.92 | F8: 9350496.00 | G8: 5629728.00 | H8: 0.00 | I8: 0.00 | J8: 3720768.00 | K8: 758176.92 | L8: 654534.72 | M8: 0.00 | N8: 103642.20 | O8: 0.00 | P8: 0.00 | Q8: 0.00 | R8: 0.00 | S8: 0.00 | T8: 0.00 | U8: 10000.00
A9: 201 | B9: 13 | C9: 99 | D9: 其他商贸事务支出 | E9: 10118672.92 | F9: 9350496.00 | G9: 5629728.00 | H9: 0.00 | I9: 0.00 | J9: 3720768.00 | K9: 758176.92 | L9: 654534.72 | M9: 0.00 | N9: 103642.20 | O9: 0.00 | P9: 0.00 | Q9: 0.00 | R9: 0.00 | S9: 0.00 | T9: 0.00 | U9: 10000.00
A10: 208 | D10: 机关事业单位基本养老保险缴费支出 | E10: =E11 -> 2142950.40 | F10: 0.00 | G10: 0.00 | H10: 0.00 | I10: 0.00 | J10: 0.00 | K10: 2142950.40 | L10: 0.00 | M10: 0.00 | N10: 0.00 | O10: 1496079.36 | P10: 646871.04 | Q10: 0.00 | R10: 0.00 | S10: 0.00 | T10: 0.00 | U10: 0.00
A11: 208 | B11: 05 | D11: 机关事业单位基本养老保险缴费支出 | E11: =SUM(E12:E13) -> 2142950.40 | F11: 0.00 | G11: 0.00 | H11: 0.00 | I11: 0.00 | J11: 0.00 | K11: 2142950.40 | L11: 0.00 | M11: 0.00 | N11: 0.00 | O11: 1496079.36 | P11: 646871.04 | Q11: 0.00 | R11: 0.00 | S11: 0.00 | T11: 0.00 | U11: 0.00
A12: 208 | B12: 05 | C12: 05 | D12: 机关事业单位基本养老保险缴费支出 | E12: 1496079.36 | F12: 0.00 | G12: 0.00 | H12: 0.00 | I12: 0.00 | J12: 0.00 | K12: 1496079.36 | L12: 0.00 | M12: 0.00 | N12: 0.00 | O12: 1496079.36 | P12: 0.00 | Q12: 0.00 | R12: 0.00 | S12: 0.00 | T12: 0.00 | U12: 0.00
A13: 208 | B13: 05 | C13: 06 | D13: 机关事业单位职业年金缴费支出 | E13: 646871.04 | F13: 0.00 | G13: 0.00 | H13: 0.00 | I13: 0.00 | J13: 0.00 | K13: 646871.04 | L13: 0.00 | M13: 0.00 | N13: 0.00 | O13: 0.00 | P13: 646871.04 | Q13: 0.00 | R13: 0.00 | S13: 0.00 | T13: 0.00 | U13: 0.00
A14: 221 | D14: 住房公积金 | E14: =E15 -> 1122059.52 | F14: 0.00 | G14: 0.00 | H14: 0.00 | I14: 0.00 | J14: 0.00 | K14: 1122059.52 | L14: 0.00 | M14: 0.00 | N14: 0.00 | O14: 0.00 | P14: 0.00 | Q14: =Q15 -> 1122059.52 | R14: 0.00 | S14: 0.00 | T14: 0.00 | U14: 0.00
A15: 221 | B15: 02 | D15: 住房公积金 | E15: 1122059.52 | F15: 0.00 | G15: 0.00 | H15: 0.00 | I15: 0.00 | J15: 0.00 | K15: 1122059.52 | L15: 0.00 | M15: 0.00 | N15: 0.00 | O15: 0.00 | P15: 0.00 | Q15: 1122059.52 | R15: 0.00 | S15: 0.00 | T15: 0.00 | U15: 0.00
A16: 221 | B16: 02 | C16: 01 | D16: 住房公积金 | E16: 1122059.52 | F16: 0.00 | G16: 0.00 | H16: 0.00 | I16: 0.00 | J16: 0.00 | K16: 1122059.52 | L16: 0.00 | M16: 0.00 | N16: 0.00 | O16: 0.00 | P16: 0.00 | Q16: 1122059.52 | R16: 0.00 | S16: 0.00 | T16: 0.00 | U16: 0.00

Sheet 基本-工资福利（政府预算）
A2: 基本支出预算明细表-工资福利（政府预算）
A3: 单位名称：临湘市市场建设服务中心 | M3: 单位：元
A4: 功能科目 | D4: 科目名称 | E4: 总计 | F4: 机关工资福利支出 | K4: 对事业单位经常性补助
A5: 类 | B5: 款 | C5: 项 | F5: 合计 | G5: 工资奖金津补贴 | H5: 社会保障缴费 | I5: 住房公积金 | J5: 其他工资福利支出 | K5: 合计 | L5: 工资福利支出 | M5: 其他对事业单位补助
D6: 合计 | E6: =E7+E10+E14 -> 13721466.52 | F6: 0.00 | G6: 0.00 | H6: 0.00 | I6: 0.00 | J6: 0.00 | K6: 13721466.52 | L6: 13721466.52 | M6: 0.00
A7: 201 | D7: 其他商贸事务支出 | E7: =E8 -> 10456456.60 | F7: 0.00 | G7: 0.00 | H7: 0.00 | I7: 0.00 | J7: 0.00 | K7: 10456456.60 | L7: 10456456.60 | M7: 0.00
A8: 201 | D8: 13 | E8: 10456456.60 | F8: 0.00 | G8: 0.00 | H8: 0.00 | I8: 0.00 | J8: 0.00 | K8: 10456456.60 | L8: 10456456.60 | M8: 0.00
A9: 201 | B9: 13 | C9: 99 | D9: 其他商贸事务支出 | E9: 10456456.60 | F9: 0.00 | G9: 0.00 | H9: 0.00 | I9: 0.00 | J9: 0.00 | K9: 10456456.60 | L9: 10456456.60 | M9: 0.00
A10: 208 | D10: 机关事业单位基本养老保险缴费支出 | E10: =E11 -> 2142950.40 | F10: 0.00 | G10: 0.00 | H10: 0.00 | I10: 0.00 | J10: 0.00 | K10: 2142950.40 | L10: 2142950.40 | M10: 0.00
A11: 208 | D11: 5 | E11: =SUM(E12:E13) -> 2142950.40 | F11: 0.00 | G11: 0.00 | H11: 0.00 | I11: 0.00 | J11: 0.00 | K11: 2142950.40 | L11: 2142950.40 | M11: 0.00
A12: 208 | B12: 05 | C12: 05 | D12: 机关事业单位基本养老保险缴费支出 | E12: 1496079.36 | F12: 0.00 | G12: 0.00 | H12: 0.00 | I12: 0.00 | J12: 0.00 | K12: 1496079.36 | L12: 1496079.36 | M12: 0.00
A13: 208 | B13: 05 | C13: 06 | D13: 机关事业单位职业年金缴费支出 | E13: 646871.04 | F13: 0.00 | G13: 0.00 | H13: 0.00 | I13: 0.00 | J13: 0.00 | K13: 646871.04 | L13: 646871.04 | M13: 0.00
A14: 221 | D14: 住房公积金 | E14: =E15 -> 1122059.52 | F14: 0.00 | G14: 0.00 | H14: 0.00 | I14: 0.00 | J14: 0.00 | K14: 1122059.52 | L14: 1122059.52 | M14: 0.00
A15: 221 | D15: 2 | E15: 1122059.52 | F15: 0.00 | G15: 0.00 | H15: 0.00 | I15: 0.00 | J15: 0.00 | K15: 1122059.52 | L15: 1122059.52 | M15: 0.00
A16: 221 | B16: 02 | C16: 01 | D16: 住房公积金 | E16: 1122059.52 | F16: 0.00 | G16: 0.00 | H16: 0.00 | I16: 0.00 | J16: 0.00 | K16: 1122059.52 | L16: 1122059.52 | M16: 0.00

Sheet 基本-商品和服务支出
A2: 基本支出预算明细表-商品和服务支出
A3: 单位名称：临湘市市场建设服务中心 | AF3: 单位：元
A4: 功能科目 | D4: 科目名称 | E4: 总计 | F4: 办公费 | G4: 日常印刷费 | H4: 水费 | I4: 电费 | J4: 邮电费 | K4: 取暖费 | L4: 物业管理费 | M4: 差旅费 | N4: 日常维修(护)费 | O4: 租赁费 | P4: 会议费 | Q4: 培训费 | R4: 公务接待费 | S4: 劳务费 | T4: 工会经费 | U4: 福利费 | V4: 公务用车运行维护费 | W4: 其他交通费 | X4: 其他一般商品和服务支出 | Y4: 咨询费 | Z4: 手续费 | AA4: 因公出国（境）费 | AB4: 专用材料费 | AC4: 被装购置费 | AD4: 专用燃料费 | AE4: 委托业务费 | AF4: 税金及附加费用
A5: 类 | B5: 款 | C5: 项
D6: 合计 | E6: =E7 -> 1,633,000.00 | F6: 159,000.00 | G6: 47,700.00 | H6: 10,000.00 | I6: 24,000.00 | J6: 13,000.00 | K6: 0.00 | L6: 0.00 | M6: 70,000.00 | N6: 566,204.00 | O6: 0.00 | P6: =P7 -> 1,500.00 | Q6: 3,500.00 | R6: 50,800.00 | S6: 0.00 | T6: 375,000.00 | U6: 27,500.00 | V6: 28,000.00 | W6: 0.00 | X6: 88,796.00 | Y6: =Y7 -> 10,000.00 | Z6: 1,000.00 | AA6: 0.00 | AB6: 0.00 | AC6: 0.00 | AD6: 0.00 | AE6: 0.00 | AF6: 157,000.00
A7: 201 | E7: 1,633,000.00 | F7: 159,000.00 | G7: 47,700.00 | H7: 10,000.00 | I7: 24,000.00 | J7: 13,000.00 | K7: 0.00 | L7: 0.00 | M7: 70,000.00 | N7: 566,204.00 | O7: 0.00 | P7: 1,500.00 | Q7: 3,500.00 | R7: 50,800.00 | S7: 0.00 | T7: 375,000.00 | U7: 27,500.00 | V7: 28,000.00 | W7: 0.00 | X7: 88,796.00 | Y7: 10,000.00 | Z7: 1,000.00 | AA7: 0.00 | AB7: 0.00 | AC7: 0.00 | AD7: 0.00 | AE7: 0.00 | AF7: 157,000.00
B8: 13 | E8: 1,633,000.00 | F8: 159,000.00 | G8: 47,700.00 | H8: 10,000.00 | I8: 24,000.00 | J8: 13,000.00 | K8: 0.00 | L8: 0.00 | M8: 70,000.00 | N8: 566,204.00 | O8: 0.00 | P8: 1,500.00 | Q8: 3,500.00 | R8: 50,800.00 | S8: 0.00 | T8: 375,000.00 | U8: 27,500.00 | V8: 28,000.00 | W8: 0.00 | X8: 88,796.00 | Y8: 10,000.00 | Z8: 1,000.00 | AA8: 0.00 | AB8: 0.00 | AC8: 0.00 | AD8: 0.00 | AE8: 0.00 | AF8: 157,000.00
A9: 201 | B9: 13 | C9: 99 | D9: 其他商贸事务支出 | E9: 1,633,000.00 | F9: 159,000.00 | G9: 47,700.00 | H9: 10,000.00 | I9: 24,000.00 | J9: 13,000.00 | K9: 0.00 | L9: 0.00 | M9: 70,000.00 | N9: 566,204.00 | O9: 0.00 | P9: 1,500.00 | Q9: 3,500.00 | R9: 50,800.00 | S9: 0.00 | T9: 375,000.00 | U9: 27,500.00 | V9: 28,000.00 | W9: 0.00 | X9: 88,796.00 | Y9: 10,000.00 | Z9: 1,000.00 | AA9: 0.00 | AB9: 0.00 | AC9: 0.00 | AD9: 0.00 | AE9: 0.00 | AF9: 157,000.00

Sheet 基本-商品和服务支出（政府预算）
A2: 基本支出预算明细表-商品和服务支出（政府预算）
A3: 单位名称：临湘市市场建设服务中心 | S3: 单位：元
A4: 功能科目 | D4: 科目名称 | E4: 总计 | F4: 机关商品和服务支出 | Q4: 对事业单位经常性补助
A5: 类 | B5: 款 | C5: 项 | F5: 合计 | G5: 办公经费 | H5: 会议费 | I5: 培训费 | J5: 委托业务费 | K5: 公务接待费 | L5: 公务用车运行维护费 | M5: 维修（护）费 | N5: 其他商品和服务支出 | O5: 因公出国（境）费用 | P5: 专用材料购置费 | Q5: 合计 | R5: 商品和服务支出 | S5: 其他对事业单位补助
D6: 合计 | E6: =E7 -> 1633000.00 | F6: 0.00 | G6: 0.00 | H6: 0.00 | I6: 0.00 | J6: 0.00 | K6: 0.00 | L6: 0.00 | M6: 0.00 | N6: 0.00 | O6: 0.00 | P6: 0.00 | Q6: 1633000.00 | R6: 1633000.00 | S6: 0.00
A7: 201 | E7: 1633000.00 | F7: 0.00 | G7: 0.00 | H7: 0.00 | I7: 0.00 | J7: 0.00 | K7: 0.00 | L7: 0.00 | M7: 0.00 | N7: 0.00 | O7: 0.00 | P7: 0.00 | Q7: 1633000.00 | R7: 1633000.00 | S7: 0.00
B8: 13 | E8: 1633000.00 | F8: 0.00 | G8: 0.00 | H8: 0.00 | I8: 0.00 | J8: 0.00 | K8: 0.00 | L8: 0.00 | M8: 0.00 | N8: 0.00 | O8: 0.00 | P8: 0.00 | Q8: 1633000.00 | R8: 1633000.00 | S8: 0.00
A9: 201 | B9: 13 | C9: 99 | D9: 其他商贸事务支出 | E9: 1633000.00 | F9: 0.00 | G9: 0.00 | H9: 0.00 | I9: 0.00 | J9: 0.00 | K9: 0.00 | L9: 0.00 | M9: 0.00 | N9: 0.00 | O9: 0.00 | P9: 0.00 | Q9: 1633000.00 | R9: 1633000.00 | S9: 0.00

Sheet 基本-个人家庭
A2: 基本支出明细表-对个人和家庭的补助
A3: 单位名称临湘市市场建设服务中心 | P3: 单位：元
A4: 功能科目 | D4: 科目名称 | E4: 总计 | F4: 离休费 | G4: 退休费 | H4: 退职(役)费 | I4: 抚恤金 | J4: 生活补助 | K4: 救济费 | L4: 医疗费 | M4: 助学金 | N4: 奖励金 | O4: 生产补贴 | P4: 其他对个人和家庭的补助
A5: 类 | B5: 款 | C5: 项
D6: 合计 | E6: =E7 -> 26,280.00 | F6: 0.00 | G6: 0.00 | H6: 0.00 | I6: 26,280.00 | J6: 0.00 | K6: 0.00 | L6: 0.00 | M6: 0.00 | N6: 0.00 | O6: 0.00 | P6: 0.00
B7: 13 | E7: 26,280.00 | F7: 0.00 | G7: 0.00 | H7: 0.00 | I7: 26,280.00 | J7: 0.00 | K7: 0.00 | L7: 0.00 | M7: 0.00 | N7: 0.00 | O7: 0.00 | P7: 0.00
A8: 201 | E8: 26,280.00 | F8: 0.00 | G8: 0.00 | H8: 0.00 | I8: 26,280.00 | J8: 0.00 | K8: 0.00 | L8: 0.00 | M8: 0.00 | N8: 0.00 | O8: 0.00 | P8: 0.00
A9: 201 | B9: 13 | C9: 99 | D9: 其他商贸事务支出 | E9: 26,280.00 | F9: 0.00 | G9: 0.00 | H9: 0.00 | I9: 26,280.00 | J9: 0.00 | K9: 0.00 | L9: 0.00 | M9: 0.00 | N9: 0.00 | O9: 0.00 | P9: 0.00

Sheet 基本-个人家庭（政府预算）
A2: 基本支出明细表-对个人和家庭的补助（政府预算）
A3: 单位名称临湘市市场建设服务中心 | J3: 单位：元
A4: 功能科目 | D4: 科目名称 | E4: 总计 | F4: 社会福利和救济 | G4: 助学金 | H4: 个人农业生产补贴 | I4: 离退休 | J4: 其他对个人和家庭的补助
A5: 类 | B5: 款 | C5: 项
D6: 合计 | E6: =E7 -> 26,280.00 | F6: 26,280.00 | G6: 0.00 | H6: 0.00 | I6: 0.00 | J6: 0.00
A7: 201 | E7: 26,280.00 | F7: 26,280.00 | G7: 0.00 | H7: 0.00 | I7: 0.00 | J7: 0.00
B8: 13 | E8: 26,280.00 | F8: 26,280.00 | G8: 0.00 | H8: 0.00 | I8: 0.00 | J8: 0.00
A9: 201 | B9: 13 | C9: 99 | D9: 其他商贸事务支出 | E9: 26,280.00 | F9: 26,280.00 | G9: 0.00 | H9: 0.00 | I9: 0.00 | J9: 0.00

Sheet 财政拨款收支总表
A1: 2020年部门预算收支总表
A2: 填报单位：临湘市市场建设服务中心 | G2: 单位：元
A3: 收入 | C3: 支出（功能科目）
A4: 项目 | B4: 本年预算 | C4: 项目 | D4: 合计 | E4: 一般公共预算 | F4: 政府性基金预算 | G4: 国有资本经营预算
A5: 一般预算拨款（补助） | B5: 一般预算拨款 | C5: 201、一般公共服务支出 | D5: 15,175,408.40 | E5: 15095408.40 | F5: 0.00 | G5: 0.00
A6: 经费拨款 | B6: 3,360,418.32 | C6: 202、外交支出 | D6: 0.00 | E6: 0.00 | F6: 0.00 | G6: 0.00
A7: 纳入预算管理的非税收入拨款 | B7: 15,000,000.00 | C7: 203、国防支出 | D7: 0.00 | E7: 0.00 | F7: 0.00 | G7: 0.00
A8: 纳入专户管理的非税收入拨款 | B8: 0.00 | C8: 204、公共安全支出 | D8: 0.00 | E8: 0.00 | F8: 0.00 | G8: 0.00
A9: 政府性基金拨款 | B9: 0.00 | C9: 205、教育支出 | D9: 0.00 | E9: 0.00 | F9: 0.00 | G9: 0.00
A10: 事业单位经营服务收入 | B10: 80,000.00 | C10: 206、科学技术支出 | D10: 0.00 | E10: 0.00 | F10: 0.00 | G10: 0.00
A11: 上级补助收入 | B11: 0.00 | C11: 207、文化体育与传媒支出 | D11: 0.00 | E11: 0.00 | F11: 0.00 | G11: 0.00
A12: 附属单位上缴收入 | B12: 0.00 | C12: 208、社会保障和就业支出 | D12: 2,142,950.40 | E12: 2142950.40 | F12: 0.00 | G12: 0.00
A13: 其他收入 | B13: 0.00 | C13: 209、社保基金支出 | D13: 0.00 | E13: 0.00 | F13: 0.00 | G13: 0.00
A14: 上年结转 | B14: 0.00 | C14: 210、医疗卫生与计划生育支出 | D14: 0.00 | E14: 0.00 | F14: 0.00 | G14: 0.00
C15: 211、节能环保支出 | D15: 0.00 | E15: 0.00 | F15: 0.00 | G15: 0.00
C16: 212、城乡社区支出 | D16: 0.00 | E16: 0.00 | F16: 0.00 | G16: 0.00
C17: 213、农林水支出 | D17: 0.00 | E17: 0.00 | F17: 0.00 | G17: 0.00
C18: 214、交通运输支出 | D18: 0.00 | E18: 0.00 | F18: 0.00 | G18: 0.00
C19: 215、资源勘探信息等支出 | D19: 0.00 | E19: 0.00 | F19: 0.00 | G19: 0.00
C20: 216、商业服务业等支出 | D20: 0.00 | E20: 0.00 | F20: 0.00 | G20: 0.00
C21: 217、金融支出 | D21: 0.00 | E21: 0.00 | F21: 0.00 | G21: 0.00
C22: 219、援助其他地区支出 | D22: 0.00 | E22: 0.00 | F22: 0.00 | G22: 0.00
C23: 220、国土海洋气象等支出 | D23: 0.00 | E23: 0.00 | F23: 0.00 | G23: 0.00
C24: 221、住房保障支出 | D24: 1,122,059.52 | E24: 1122059.52 | F24: 0.00 | G24: 0.00
C25: 222、粮油物资储备支出 | D25: 0.00 | E25: 0.00 | F25: 0.00 | G25: 0.00
C26: 223、国有资本经营预算支出 | D26: 0.00 | E26: 0.00 | F26: 0.00 | G26: 0.00
C27: 227、预备费 | D27: 0.00 | E27: 0.00 | F27: 0.00 | G27: 0.00
C28: 229、其他支出 | D28: 0.00 | E28: 0.00 | F28: 0.00 | G28: 0.00
C29: 230、转移性支出 | D29: 0.00 | E29: 0.00 | F29: 0.00 | G29: 0.00
C30: 231、债务还本支出 | D30: 0.00 | E30: 0.00 | F30: 0.00 | G30: 0.00
C31: 232、债务付息支出 | D31: 0.00 | E31: 0.00 | F31: 0.00 | G31: 0.00
C32: 233、债务发行费用支出 | D32: 0.00 | E32: 0.00 | F32: 0.00 | G32: 0.00
A34: 本年收入合计 | B34: 18,440,418.32 | C34: 本年支出合计 | D34: 18,440,418.32 | E34: 18360418.32 | F34: 0.00 | G34: 0.00

Sheet 一般预算支出表
A2: 一般公共预算支出情况表
A3: 单位名称临湘市市场建设服务中心 | R3: 单位：元
A4: 功能科目 | E4: 总计 | F4: 基本支出 | J4: 项目支出
A5: 科目编码 | D5: 科目名称 | F5: 合计 | G5: 工资福利支出 | H5: 一般商品和服务支出 | I5: 对个人和家庭的补助 | J5: 合计 | K5: 商品和服务支出 | L5: 对个人和家庭的补助支出 | M5: 资本性支出（基建） | N5: 资本性支出（项目支出） | O5: 其他资本性支出 | P5: 对企事业单位的补贴（基建） | Q5: 对社会保障基金补助 | R5: 其他支出 | S5: 债务利息及费用支出
A6: 类 | B6: 款 | C6: 项
D7: 合计 | E7: =E8+E11+E15 -> 18,360,418.32 | F7: 15,300,746.52 | G7: 13,721,466.52 | H7: 1,553,000.00 | I7: 26,280.00 | J7: 3,059,671.80 | K7: 2,819,671.80 | L7: 0.00 | M7: 0.00 | N7: 130,000.00 | O7: 0.00 | P7: 0.00 | Q7: 0.00 | R7: 110,000.00 | S7: 0.00
B8: 02 | E8: =E9 -> 1,122,059.52 | F8: 1,122,059.52 | G8: 1,122,059.52 | H8: 0.00 | I8: 0.00 | J8: 0.00 | K8: 0.00 | L8: 0.00 | M8: 0.00 | N8: 0.00 | O8: 0.00 | P8: 0.00 | Q8: 0.00 | R8: 0.00 | S8: 0.00
A9: 221 | E9: 1,122,059.52 | F9: 1,122,059.52 | G9: 1,122,059.52 | H9: 0.00 | I9: 0.00 | J9: 0.00 | K9: 0.00 | L9: 0.00 | M9: 0.00 | N9: 0.00 | O9: 0.00 | P9: 0.00 | Q9: 0.00 | R9: 0.00 | S9: 0.00
A10: 221 | B10: 02 | C10: 01 | D10: 住房公积金 | E10: 1,122,059.52 | F10: 1,122,059.52 | G10: 1,122,059.52 | H10: 0.00 | I10: 0.00 | J10: 0.00 | K10: 0.00 | L10: 0.00 | M10: 0.00 | N10: 0.00 | O10: 0.00 | P10: 0.00 | Q10: 0.00 | R10: 0.00 | S10: 0.00
B11: 05 | E11: =E12 -> 2,142,950.40 | F11: 2,142,950.40 | G11: 2,142,950.40 | H11: 0.00 | I11: 0.00 | J11: 0.00 | K11: 0.00 | L11: 0.00 | M11: 0.00 | N11: 0.00 | O11: 0.00 | P11: 0.00 | Q11: 0.00 | R11: 0.00 | S11: 0.00
A12: 208 | E12: =SUM(E13:E14) -> 2,142,950.40 | F12: 2,142,950.40 | G12: 2,142,950.40 | H12: 0.00 | I12: 0.00 | J12: 0.00 | K12: 0.00 | L12: 0.00 | M12: 0.00 | N12: 0.00 | O12: 0.00 | P12: 0.00 | Q12: 0.00 | R12: 0.00 | S12: 0.00
A13: 208 | B13: 05 | C13: 05 | D13: 机关事业单位基本养老保险缴费支出 | E13: 1,496,079.36 | F13: 1,496,079.36 | G13: 1,496,079.36 | H13: 0.00 | I13: 0.00 | J13: 0.00 | K13: 0.00 | L13: 0.00 | M13: 0.00 | N13: 0.00 | O13: 0.00 | P13: 0.00 | Q13: 0.00 | R13: 0.00 | S13: 0.00
A14: 208 | B14: 05 | C14: 06 | D14: 机关事业单位职业年金缴费支出 | E14: 646,871.04 | F14: 646,871.04 | G14: 646,871.04 | H14: 0.00 | I14: 0.00 | J14: 0.00 | K14: 0.00 | L14: 0.00 | M14: 0.00 | N14: 0.00 | O14: 0.00 | P14: 0.00 | Q14: 0.00 | R14: 0.00 | S14: 0.00
B15: 13 | E15: =E16 -> 15,095,408.40 | F15: 12,035,736.60 | G15: 10,456,456.60 | H15: 1,553,000.00 | I15: 26,280.00 | J15: 3,059,671.80 | K15: 2,819,671.80 | L15: 0.00 | M15: 0.00 | N15: 130,000.00 | O15: 0.00 | P15: 0.00 | Q15: 0.00 | R15: 110,000.00 | S15: 0.00
A16: 201 | E16: 15,095,408.40 | F16: 12,035,736.60 | G16: 10,456,456.60 | H16: 1,553,000.00 | I16: 26,280.00 | J16: 3,059,671.80 | K16: 2,819,671.80 | L16: 0.00 | M16: 0.00 | N16: 130,000.00 | O16: 0.00 | P16: 0.00 | Q16: 0.00 | R16: 110,000.00 | S16: 0.00
A17: 201 | B17: 13 | C17: 99 | D17: 其他商贸事务支出 | E17: 15,095,408.40 | F17: 12,035,736.60 | G17: 10,456,456.60 | H17: 1,553,000.00 | I17: 26,280.00 | J17: 3,059,671.80 | K17: 2,819,671.80 | L17: 0.00 | M17: 0.00 | N17: 130,000.00 | O17: 0.00 | P17: 0.00 | Q17: 0.00 | R17: 110,000.00 | S17: 0.00

Sheet 一般预算基本支出表
A2: 一般公共预算基本支出情况表
A3: 单位名称临湘市市场建设服务中心 | I3: 单位：元
A4: 功能科目 | E4: 总计 | F4: 基本支出
A5: 科目编码 | D5: 科目名称 | F5: 合计 | G5: 工资福利支出 | H5: 一般商品和服务支出 | I5: 对个人和家庭的补助
A6: 类 | B6: 款 | C6: 项
D7: 合计 | E7: =E8+E11+E15 -> 15,300,746.52 | F7: =F8+F11+F15 -> 15,300,746.52 | G7: =G8+G11+G15 -> 13,721,466.52 | H7: =H8+H11+H15 -> 1,553,000.00 | I7: =I8+I11+I15 -> 26,280.00
B8: 02 | E8: =E9 -> 1,122,059.52 | F8: 1,122,059.52 | G8: 1,122,059.52 | H8: 0.00 | I8: 0.00
A9: 221 | E9: 1,122,059.52 | F9: 1,122,059.52 | G9: 1,122,059.52 | H9: 0.00 | I9: 0.00
A10: 221 | B10: 02 | C10: 01 | D10: 住房公积金 | E10: 1,122,059.52 | F10: 1,122,059.52 | G10: 1,122,059.52 | H10: 0.00 | I10: 0.00
B11: 05 | E11: =E12 -> 2,142,950.40 | F11: =F12 -> 2,142,950.40 | G11: =G12 -> 2,142,950.40 | H11: 0.00 | I11: 0.00
A12: 208 | E12: =SUM(E13:E14) -> 2,142,950.40 | F12: =SUM(F13:F14) -> 2,142,950.40 | G12: =SUM(G13:G14) -> 2,142,950.40 | H12: 0.00 | I12: 0.00
A13: 208 | B13: 05 | C13: 05 | D13: 机关事业单位基本养老保险缴费支出 | E13: 1,496,079.36 | F13: 1,496,079.36 | G13: 1,496,079.36 | H13: 0.00 | I13: 0.00
A14: 208 | B14: 05 | C14: 06 | D14: 机关事业单位职业年金缴费支出 | E14: 646,871.04 | F14: 646,871.04 | G14: 646,871.04 | H14: 0.00 | I14: 0.00
B15: 13 | E15: =E16 -> 12,035,736.60 | F15: 12,035,736.60 | G15: 10,456,456.60 | H15: 1,553,000.00 | I15: 26,280.00
A16: 201 | E16: 12,035,736.60 | F16: 12,035,736.60 | G16: 10,456,456.60 | H16: 1,553,000.00 | I16: 26,280.00
A17: 201 | B17: 13 | C17: 99 | D17: 其他商贸事务支出 | E17: 12,035,736.60 | F17: 12,035,736.60 | G17: 10,456,456.60 | H17: 1,553,000.00 | I17: 26,280.00

Sheet 一般-工资福利
A2: 一般公共预算基本支出预算明细表-工资福利支出
A3: 单位名称：临湘市市场建设服务中心 | U3: 单位：元
A4: 功能科目 | D4: 科目名称 | E4: 总计 | F4: 工资性支出 | K4: 社会保障缴费 | Q4: 住房公积金 | R4: 伙食补贴支出 | U4: 其他工资福利支出
A5: 类 | B5: 款 | C5: 项 | F5: 合计 | G5: 基本工资 | H5: 津贴补贴 | I5: 奖金 | J5: 绩效工资 | K5: 合计 | L5: 职工基本医疗保险 | M5: 公务员医疗补助缴费 | N5: 其他社会保障缴费 | O5: 机关事业单位基本养老保险缴费 | P5: 职业年金 | R5: 合计 | S5: 医疗费 | T5: 伙食补助费
D6: 合计 | E6: =E7+E10+E14 -> 13383682.84 | F6: 9350496.00 | G6: 5629728.00 | H6: 0.00 | I6: 0.00 | J6: 3720768.00 | K6: 2901127.32 | L6: 654534.72 | M6: 0.00 | N6: 103642.20 | O6: 1496079.36 | P6: 646871.04 | Q6: 1122059.52 | R6: 0.00 | S6: 0.00 | T6: 0.00 | U6: 10000.00
B7: 02 | E7: =E8 -> 1122059.52 | F7: 0.00 | G7: 0.00 | H7: 0.00 | I7: 0.00 | J7: 0.00 | K7: 0.00 | L7: 0.00 | M7: 0.00 | N7: 0.00 | O7: 0.00 | P7: 0.00 | Q7: =Q8 -> 1122059.52 | R7: 0.00 | S7: 0.00 | T7: 0.00 | U7: 0.00
A8: 221 | E8: 1122059.52 | F8: 0.00 | G8: 0.00 | H8: 0.00 | I8: 0.00 | J8: 0.00 | K8: 0.00 | L8: 0.00 | M8: 0.00 | N8: 0.00 | O8: 0.00 | P8: 0.00 | Q8: 1122059.52 | R8: 0.00 | S8: 0.00 | T8: 0.00 | U8: 0.00
A9: 221 | B9: 02 | C9: 01 | D9: 住房公积金 | E9: 1122059.52 | F9: 0.00 | G9: 0.00 | H9: 0.00 | I9: 0.00 | J9: 0.00 | K9: 0.00 | L9: 0.00 | M9: 0.00 | N9: 0.00 | O9: 0.00 | P9: 0.00 | Q9: 1122059.52 | R9: 0.00 | S9: 0.00 | T9: 0.00 | U9: 0.00
B10: 05 | E10: =E11 -> 2142950.40 | F10: 0.00 | G10: 0.00 | H10: 0.00 | I10: 0.00 | J10: 0.00 | K10: 2142950.40 | L10: 0.00 | M10: 0.00 | N10: 0.00 | O10: 1496079.36 | P10: 646871.04 | Q10: 0.00 | R10: 0.00 | S10: 0.00 | T10: 0.00 | U10: 0.00
A11: 208 | E11: =SUM(E12:E13) -> 2142950.40 | F11: 0.00 | G11: 0.00 | H11: 0.00 | I11: 0.00 | J11: 0.00 | K11: 2142950.40 | L11: 0.00 | M11: 0.00 | N11: 0.00 | O11: 1496079.36 | P11: 646871.04 | Q11: 0.00 | R11: 0.00 | S11: 0.00 | T11: 0.00 | U11: 0.00
A12: 208 | B12: 05 | C12: 05 | D12: 机关事业单位基本养老保险缴费支出 | E12: 1496079.36 | F12: 0.00 | G12: 0.00 | H12: 0.00 | I12: 0.00 | J12: 0.00 | K12: 1496079.36 | L12: 0.00 | M12: 0.00 | N12: 0.00 | O12: 1496079.36 | P12: 0.00 | Q12: 0.00 | R12: 0.00 | S12: 0.00 | T12: 0.00 | U12: 0.00
A13: 208 | B13: 05 | C13: 06 | D13: 机关事业单位职业年金缴费支出 | E13: 646871.04 | F13: 0.00 | G13: 0.00 | H13: 0.00 | I13: 0.00 | J13: 0.00 | K13: 646871.04 | L13: 0.00 | M13: 0.00 | N13: 0.00 | O13: 0.00 | P13: 646871.04 | Q13: 0.00 | R13: 0.00 | S13: 0.00 | T13: 0.00 | U13: 0.00
B14: 13 | E14: =E15 -> 10118672.92 | F14: 9350496.00 | G14: 5629728.00 | H14: 0.00 | I14: 0.00 | J14: 3720768.00 | K14: 758176.92 | L14: 654534.72 | M14: 0.00 | N14: 103642.20 | O14: 0.00 | P14: 0.00 | Q14: 0.00 | R14: 0.00 | S14: 0.00 | T14: 0.00 | U14: =U15 -> 10000.00
A15: 201 | E15: 10118672.92 | F15: 9350496.00 | G15: 5629728.00 | H15: 0.00 | I15: 0.00 | J15: 3720768.00 | K15: 758176.92 | L15: 654534.72 | M15: 0.00 | N15: 103642.20 | O15: 0.00 | P15: 0.00 | Q15: 0.00 | R15: 0.00 | S15: 0.00 | T15: 0.00 | U15: 10000.00
A16: 201 | B16: 13 | C16: 99 | D16: 其他商贸事务支出 | E16: 10118672.92 | F16: 9350496.00 | G16: 5629728.00 | H16: 0.00 | I16: 0.00 | J16: 3720768.00 | K16: 758176.92 | L16: 654534.72 | M16: 0.00 | N16: 103642.20 | O16: 0.00 | P16: 0.00 | Q16: 0.00 | R16: 0.00 | S16: 0.00 | T16: 0.00 | U16: 10000.00

Sheet 一般-工资福利（政府预算）
A2: 一般公共预算基本支出预算明细表-工资福利支出(按政府预算经济分类)
A3: 单位名称临湘市市场建设服务中心 | M3: 单位：元
A4: 功能科目 | D4: 科目名称 | E4: 总计 | F4: 机关工资福利支出 | K4: 对事业单位经常性补助
A5: 类 | B5: 款 | C5: 项 | F5: 合计 | G5: 工资奖金津补贴 | H5: 社会保障缴费 | I5: 住房公积金 | J5: 其他工资福利支出 | K5: 合计 | L5: 工资福利支出 | M5: 其他对事业单位补助
D6: 合计 | E6: =E7+E10+E14 -> 13721466.52 | F6: 0.00 | G6: 0.00 | H6: 0.00 | I6: 0.00 | J6: 0.00 | K6: 13721466.52 | L6: 13721466.52 | M6: 0.00
B7: 02 | E7: =E8 -> 1122059.52 | F7: 0.00 | G7: 0.00 | H7: 0.00 | I7: 0.00 | J7: 0.00 | K7: 1122059.52 | L7: 1122059.52 | M7: 0.00
A8: 221 | E8: 1122059.52 | F8: 0.00 | G8: 0.00 | H8: 0.00 | I8: 0.00 | J8: 0.00 | K8: 1122059.52 | L8: 1122059.52 | M8: 0.00
A9: 221 | B9: 02 | C9: 01 | D9: 住房公积金 | E9: 1122059.52 | F9: 0.00 | G9: 0.00 | H9: 0.00 | I9: 0.00 | J9: 0.00 | K9: 1122059.52 | L9: 1122059.52 | M9: 0.00
B10: 05 | E10: =E11 -> 2142950.40 | F10: 0.00 | G10: 0.00 | H10: 0.00 | I10: 0.00 | J10: 0.00 | K10: 2142950.40 | L10: 2142950.40 | M10: 0.00
A11: 208 | E11: =SUM(E12:E13) -> 2142950.40 | F11: 0.00 | G11: 0.00 | H11: 0.00 | I11: 0.00 | J11: 0.00 | K11: 2142950.40 | L11: 2142950.40 | M11: 0.00
A12: 208 | B12: 05 | C12: 05 | D12: 机关事业单位基本养老保险缴费支出 | E12: 1496079.36 | F12: 0.00 | G12: 0.00 | H12: 0.00 | I12: 0.00 | J12: 0.00 | K12: 1496079.36 | L12: 1496079.36 | M12: 0.00
A13: 208 | B13: 05 | C13: 06 | D13: 机关事业单位职业年金缴费支出 | E13: 646871.04 | F13: 0.00 | G13: 0.00 | H13: 0.00 | I13: 0.00 | J13: 0.00 | K13: 646871.04 | L13: 646871.04 | M13: 0.00
B14: 13 | E14: =E15 -> 10456456.60 | F14: 0.00 | G14: 0.00 | H14: 0.00 | I14: 0.00 | J14: 0.00 | K14: 10456456.60 | L14: 10456456.60 | M14: 0.00
A15: 201 | E15: 10456456.60 | F15: 0.00 | G15: 0.00 | H15: 0.00 | I15: 0.00 | J15: 0.00 | K15: 10456456.60 | L15: 10456456.60 | M15: 0.00
A16: 201 | B16: 13 | C16: 99 | D16: 其他商贸事务支出 | E16: 10456456.60 | F16: 0.00 | G16: 0.00 | H16: 0.00 | I16: 0.00 | J16: 0.00 | K16: 10456456.60 | L16: 10456456.60 | M16: 0.00

Sheet 一般-商品和服务支出
A2: 一般公共预算基本预算支出明细表-商品和服务支出
A3: 单位名称临湘市市场建设服务中心 | AF3: 单位：元
A4: 功能科目 | D4: 科目名称 | E4: 总计 | F4: 办公费 | G4: 日常印刷费 | H4: 水费 | I4: 电费 | J4: 邮电费 | K4: 取暖费 | L4: 物业管理费 | M4: 因公出国（境）费 | N4: 差旅费 | O4: 日常维修(护)费 | P4: 租赁费 | Q4: 会议费 | R4: 培训费 | S4: 公务接待费 | T4: 劳务费 | U4: 工会经费 | V4: 福利费 | W4: 公务用车运行维护费 | X4: 其他交通费 | Y4: 其他一般商品和服务支出 | Z4: 税金及附加费用 | AA4: 业务委托费 | AB4: 专用燃料费 | AC4: 被装购置费 | AD4: 专用材料费 | AE4: 手续费 | AF4: 咨询费
A5: 类 | B5: 款 | C5: 项
D6: 合计 | E6: =E7 -> 4,372,671.80 | F6: 154,000.00 | G6: 42,700.00 | H6: 20,000.00 | I6: 39,000.00 | J6: 13,000.00 | K6: 0.00 | L6: 0.00 | M6: 0.00 | N6: 70,000.00 | O6: =O7 -> 696,204.00 | P6: 0.00 | Q6: 1,500.00 | R6: 3,500.00 | S6: 50,800.00 | T6: 0.00 | U6: 555,000.00 | V6: 47,500.00 | W6: 28,000.00 | X6: 0.00 | Y6: =Y7 -> 1,868,467.80 | Z6: 762,000.0000 | AA6: 10,000.0000 | AB6: 0.00 | AC6: 0.00 | AD6: 0.00 | AE6: 1,000.0000 | AF6: 10,000.0000
B7: 13 | E7: 4,372,671.80 | F7: 154,000.00 | G7: 42,700.00 | H7: 20,000.00 | I7: 39,000.00 | J7: 13,000.00 | K7: 0.00 | L7: 0.00 | M7: 0.00 | N7: 70,000.00 | O7: 696,204.00 | P7: 0.00 | Q7: 1,500.00 | R7: 3,500.00 | S7: 50,800.00 | T7: 0.00 | U7: 555,000.00 | V7: 47,500.00 | W7: 28,000.00 | X7: 0.00 | Y7: 1,868,467.80 | Z7: 762,000.0000 | AA7: 10,000.0000 | AB7: 0.00 | AC7: 0.00 | AD7: 0.00 | AE7: 1,000.0000 | AF7: 10,000.0000
A8: 201 | E8: 4,372,671.80 | F8: 154,000.00 | G8: 42,700.00 | H8: 20,000.00 | I8: 39,000.00 | J8: 13,000.00 | K8: 0.00 | L8: 0.00 | M8: 0.00 | N8: 70,000.00 | O8: 696,204.00 | P8: 0.00 | Q8: 1,500.00 | R8: 3,500.00 | S8: 50,800.00 | T8: 0.00 | U8: 555,000.00 | V8: 47,500.00 | W8: 28,000.00 | X8: 0.00 | Y8: 1,868,467.80 | Z8: 762,000.0000 | AA8: 10,000.0000 | AB8: 0.00 | AC8: 0.00 | AD8: 0.00 | AE8: 1,000.0000 | AF8: 10,000.0000
A9: 201 | B9: 13 | C9: 99 | D9: 其他商贸事务支出 | E9: 4,372,671.80 | F9: 154,000.00 | G9: 42,700.00 | H9: 20,000.00 | I9: 39,000.00 | J9: 13,000.00 | K9: 0.00 | L9: 0.00 | M9: 0.00 | N9: 70,000.00 | O9: 696,204.00 | P9: 0.00 | Q9: 1,500.00 | R9: 3,500.00 | S9: 50,800.00 | T9: 0.00 | U9: 555,000.00 | V9: 47,500.00 | W9: 28,000.00 | X9: 0.00 | Y9: 1,868,467.80 | Z9: 762,000.0000 | AA9: 10,000.0000 | AB9: 0.00 | AC9: 0.00 | AD9: 0.00 | AE9: 1,000.0000 | AF9: 10,000.0000

Sheet 一般-商品和服务支出（政府预算）
A2: 一般公共预算支出预算明细表-商品和服务支出（政府预算）
A3: 单位名称临湘市市场建设服务中心 | S3: 单位：元
A4: 功能科目 | D4: 科目名称 | E4: 总计 | F4: 机关商品和服务支出 | Q4: 对事业单位经常性补助
A5: 类 | B5: 款 | C5: 项 | F5: 合计 | G5: 办公经费 | H5: 会议费 | I5: 培训费 | J5: 委托业务费 | K5: 公务接待费 | L5: 公务用车运行维护费 | M5: 维修（护）费 | N5: 其他商品和服务支出 | O5: 因公出国（境）费用 | P5: 专用材料购置费 | Q5: 合计 | R5: 商品和服务支出 | S5: 其他对事业单位补助
D6: 合计 | E6: =E7 -> 4,372,671.80 | F6: 0.00 | G6: 0.00 | H6: 0.00 | I6: 0.00 | J6: 0.00 | K6: 0.00 | L6: 0.00 | M6: 0.00 | N6: 0.00 | O6: 0.00 | P6: 0.00 | Q6: 4,372,671.80 | R6: 4,372,671.80 | S6: 0.00
B7: 13 | E7: 4,372,671.80 | F7: 0.00 | G7: 0.00 | H7: 0.00 | I7: 0.00 | J7: 0.00 | K7: 0.00 | L7: 0.00 | M7: 0.00 | N7: 0.00 | O7: 0.00 | P7: 0.00 | Q7: 4,372,671.80 | R7: 4,372,671.80 | S7: 0.00
A8: 201 | E8: 4,372,671.80 | F8: 0.00 | G8: 0.00 | H8: 0.00 | I8: 0.00 | J8: 0.00 | K8: 0.00 | L8: 0.00 | M8: 0.00 | N8: 0.00 | O8: 0.00 | P8: 0.00 | Q8: 4,372,671.80 | R8: 4,372,671.80 | S8: 0.00
A9: 201 | B9: 13 | C9: 99 | D9: 其他商贸事务支出 | E9: 4,372,671.80 | F9: 0.00 | G9: 0.00 | H9: 0.00 | I9: 0.00 | J9: 0.00 | K9: 0.00 | L9: 0.00 | M9: 0.00 | N9: 0.00 | O9: 0.00 | P9: 0.00 | Q9: 4,372,671.80 | R9: 4,372,671.80 | S9: 0.00

Sheet 一般-个人家庭
A2: 一般公共预算基本支出明细表-对个人和家庭的补助
A3: 单位名称临湘市市场建设服务中心 | P3: 单位：元
A4: 功能科目 | D4: 科目名称 | E4: 总计 | F4: 离休费 | G4: 退休费 | H4: 退职(役)费 | I4: 抚恤金 | J4: 生活补助 | K4: 救济费 | L4: 医疗费 | M4: 助学金 | N4: 奖励金 | O4: 生产补贴 | P4: 其他对个人和家庭的补助
A5: 类 | B5: 款 | C5: 项
D6: 合计 | E6: =E7 -> 26,280.00 | F6: 0.00 | G6: 0.00 | H6: 0.00 | I6: 26,280.00 | J6: 0.00 | K6: 0.00 | L6: 0.00 | M6: 0.00 | N6: 0.00 | O6: 0.00 | P6: 0.00
B7: 13 | E7: 26,280.00 | F7: 0.00 | G7: 0.00 | H7: 0.00 | I7: 26,280.00 | J7: 0.00 | K7: 0.00 | L7: 0.00 | M7: 0.00 | N7: 0.00 | O7: 0.00 | P7: 0.00
A8: 201 | E8: 26,280.00 | F8: 0.00 | G8: 0.00 | H8: 0.00 | I8: 26,280.00 | J8: 0.00 | K8: 0.00 | L8: 0.00 | M8: 0.00 | N8: 0.00 | O8: 0.00 | P8: 0.00
A9: 201 | B9: 13 | C9: 99 | D9: 其他商贸事务支出 | E9: 26,280.00 | F9: 0.00 | G9: 0.00 | H9: 0.00 | I9: 26,280.00 | J9: 0.00 | K9: 0.00 | L9: 0.00 | M9: 0.00 | N9: 0.00 | O9: 0.00 | P9: 0.00

Sheet 一般-个人家庭（政府预算）
A2: 一般公共预算基本支出明细表-对个人和家庭的补助（政府预算）
A3: 单位名称临湘市市场建设服务中心 | J3: 单位：元
A4: 功能科目 | D4: 科目名称 | E4: 总计 | F4: 社会福利和救济 | G4: 助学金 | H4: 个人农业生产补贴 | I4: 离退休 | J4: 其他对个人和家庭的补助
A5: 类 | B5: 款 | C5: 项
D6: 合计 | E6: =E7 -> 26,280.00 | F6: 26,280.00 | G6: 0.00 | H6: 0.00 | I6: 0.00 | J6: 0.00
B7: 13 | E7: 26,280.00 | F7: 26,280.00 | G7: 0.00 | H7: 0.00 | I7: 0.00 | J7: 0.00
A8: 201 | E8: 26,280.00 | F8: 26,280.00 | G8: 0.00 | H8: 0.00 | I8: 0.00 | J8: 0.00
A9: 201 | B9: 13 | C9: 99 | D9: 其他商贸事务支出 | E9: 26,280.00 | F9: 26,280.00 | G9: 0.00 | H9: 0.00 | I9: 0.00 | J9: 0.00

Sheet 基金
A2: 政府性基金预算支出情况表
A3: 单位名称临湘市市场建设服务中心 | Q3: 单位：元
A4: 功能科目 | E4: 总计 | F4: 基本支出 | J4: 项目支出
A5: 科目编码 | D5: 科目名称 | F5: 合计 | G5: 工资福利支出 | H5: 一般商品和服务支出 | I5: 对个人和家庭的补助 | J5: 合计 | K5: 商品和服务支出 | L5: 对个人和家庭的补助支出 | M5: 基本建设 | N5: 其他资本性支出 | O5: 对企事业单位的补贴 | P5: 其他支出 | Q5: 债务利息及费用支出
A6: 类 | B6: 款 | C6: 项
E7: 0.00 | F7: 0.00 | G7: 0.00 | H7: 0.00 | I7: 0.00 | J7: 0.00 | K7: 0.00 | L7: 0.00 | M7: 0.00 | N7: 0.00 | O7: 0.00 | P7: 0.00 | Q7: 0.00

Sheet 基金（政府预算）
A2: 政府性基金预算支出情况表(按政府预算经济分类)
A3: 单位名称临湘市市场建设服务中心 | Q3: 单位：元
A4: 功能科目 | D4: 功能科目 | E4: 总计 | F4: 机关工资福利支出 | G4: 机关商品和服务支出 | H4: 机关资本性支出（一） | I4: 机关资本性支出（二） | J4: 对事业单位经常性补助 | K4: 对事业单位资本性补助 | L4: 对企业补助 | M4: 对企业资本性支出 | N4: 对个人和家庭的补助 | O4: 对社会保障基金补助 | P4: 债务利息及费用支出 | Q4: 其他支出
A5: 类 | B5: 款 | C5: 项
E7: 0.00 | F7: 0.00 | G7: 0.00 | H7: 0.00 | I7: 0.00 | J7: 0.00 | K7: 0.00 | L7: 0.00 | M7: 0.00 | N7: 0.00 | O7: 0.00 | P7: 0.00 | Q7: 0.00

Sheet 专户
A2: 纳入专户管理的非税收入预算拨款汇总表
A3: 单位名称临湘市市场建设服务中心 | Q3: 单位：元
A4: 功能科目 | E4: 总计 | F4: 基本支出 | J4: 项目支出
A5: 科目编码 | D5: 科目名称 | F5: 合计 | G5: 工资福利支出 | H5: 一般商品和服务支出 | I5: 对个人和家庭的补助 | J5: 合计 | K5: 商品和服务支出 | L5: 对个人和家庭的补助支出 | M5: 基本建设 | N5: 其他资本性支出 | O5: 对企事业单位的补贴 | P5: 其他支出 | Q5: 债务利息及费用支出
A6: 类 | B6: 款 | C6: 项
E7: 0.00 | F7: 0.00 | G7: 0.00 | H7: 0.00 | I7: 0.00 | J7: 0.00 | K7: 0.00 | L7: 0.00 | M7: 0.00 | N7: 0.00 | O7: 0.00 | P7: 0.00 | Q7: 0.00

Sheet 专户（政府预算）
A2: 纳入专户管理的非税收入拨款预算分类汇总表(按政府预算经济分类)
A3: 单位名称临湘市市场建设服务中心 | Q3: 单位：元
A4: 功能科目 | D4: 功能科目 | E4: 总计 | F4: 机关工资福利支出 | G4: 机关商品和服务支出 | H4: 机关资本性支出（一） | I4: 机关资本性支出（二） | J4: 对事业单位经常性补助 | K4: 对事业单位资本性补助 | L4: 对企业补助 | M4: 对企业资本性支出 | N4: 对个人和家庭的补助 | O4: 对社会保障基金补助 | P4: 债务利息及费用支出 | Q4: 其他支出
A5: 类 | B5: 款 | C5: 项
E7: 0.00 | F7: 0.00 | G7: 0.00 | H7: 0.00 | I7: 0.00 | J7: 0.00 | K7: 0.00 | L7: 0.00 | M7: 0.00 | N7: 0.00 | O7: 0.00 | P7: 0.00 | Q7: 0.00

Sheet 经费拨款
A2: 一般预算拨款-经费拨款
A3: 单位名称临湘市市场建设服务中心 | Q3: 单位：元
A4: 功能科目 | E4: 总计 | F4: 基本支出 | J4: 项目支出
A5: 科目编码 | D5: 科目名称 | F5: 合计 | G5: 工资福利支出 | H5: 一般商品和服务支出 | I5: 对个人和家庭的补助 | J5: 合计 | K5: 商品和服务支出 | L5: 对个人和家庭的补助支出 | M5: 基本建设 | N5: 其他资本性支出 | O5: 对企事业单位的补贴 | P5: 其他支出 | Q5: 债务利息及费用支出
A6: 类 | B6: 款 | C6: 项
D7: 合计 | E7: =E8+E11+E14 -> 3360418.32 | F7: 1920418.32 | G7: 1768138.32 | H7: 126000.00 | I7: 26280.00 | J7: 1440000.00 | K7: 1200000.00 | L7: 0.00 | M7: 0.00 | N7: 130000.00 | O7: 0.00 | P7: 110000.00 | Q7: 0.00
A8: 201 | E8: =E9 -> 3006328.08 | F8: 1566328.08 | G8: 1414048.08 | H8: 126000.00 | I8: 26280.00 | J8: 1440000.00 | K8: 1200000.00 | L8: 0.00 | M8: 0.00 | N8: 130000.00 | O8: 0.00 | P8: 110000.00 | Q8: 0.00
B9: 13 | E9: 3006328.08 | F9: 1566328.08 | G9: 1414048.08 | H9: 126000.00 | I9: 26280.00 | J9: 1440000.00 | K9: 1200000.00 | L9: 0.00 | M9: 0.00 | N9: 130000.00 | O9: 0.00 | P9: 110000.00 | Q9: 0.00
A10: 201 | B10: 13 | C10: 99 | D10: 其他商贸事务支出 | E10: 3006328.08 | F10: 1566328.08 | G10: 1414048.08 | H10: 126000.00 | I10: 26280.00 | J10: 1440000.00 | K10: 1200000.00 | L10: 0.00 | M10: 0.00 | N10: 130000.00 | O10: 0.00 | P10: 110000.00 | Q10: 0.00
A11: 208 | E11: =E12 -> 202337.28 | F11: 202337.28 | G11: 202337.28 | H11: 0.00 | I11: 0.00 | J11: 0.00 | K11: 0.00 | L11: 0.00 | M11: 0.00 | N11: 0.00 | O11: 0.00 | P11: 0.00 | Q11: 0.00
B12: 5 | E12: 202337.28 | F12: 202337.28 | G12: 202337.28 | H12: 0.00 | I12: 0.00 | J12: 0.00 | K12: 0.00 | L12: 0.00 | M12: 0.00 | N12: 0.00 | O12: 0.00 | P12: 0.00 | Q12: 0.00
A13: 208 | B13: 5 | C13: 5 | D13: 机关事业单位基本养老保险缴费支出 | E13: 202337.28 | F13: 202337.28 | G13: 202337.28 | H13: 0.00 | I13: 0.00 | J13: 0.00 | K13: 0.00 | L13: 0.00 | M13: 0.00 | N13: 0.00 | O13: 0.00 | P13: 0.00 | Q13: 0.00
A14: 221 | E14: =E15 -> 151752.96 | F14: 151752.96 | G14: 151752.96 | H14: 0.00 | I14: 0.00 | J14: 0.00 | K14: 0.00 | L14: 0.00 | M14: 0.00 | N14: 0.00 | O14: 0.00 | P14: 0.00 | Q14: 0.00
B15: 2 | E15: 151752.96 | F15: 151752.96 | G15: 151752.96 | H15: 0.00 | I15: 0.00 | J15: 0.00 | K15: 0.00 | L15: 0.00 | M15: 0.00 | N15: 0.00 | O15: 0.00 | P15: 0.00 | Q15: 0.00
A16: 221 | B16: 2 | C16: 1 | D16: 住房公积金 | E16: 151752.96 | F16: 151752.96 | G16: 151752.96 | H16: 0.00 | I16: 0.00 | J16: 0.00 | K16: 0.00 | L16: 0.00 | M16: 0.00 | N16: 0.00 | O16: 0.00 | P16: 0.00 | Q16: 0.00

Sheet 经费拨款（政府预算）
A2: 一般公共预算拨款--经费拨款预算表(按政府预算经济分类)
A3: 单位名称临湘市市场建设服务中心 | Q3: 单位：元
A4: 功能科目 | D4: 功能科目 | E4: 总计 | F4: 机关工资福利支出 | G4: 机关商品和服务支出 | H4: 机关资本性支出（一） | I4: 机关资本性支出（二） | J4: 对事业单位经常性补助 | K4: 对事业单位资本性补助 | L4: 对企业补助 | M4: 对企业资本性支出 | N4: 对个人和家庭的补助 | O4: 对社会保障基金补助 | P4: 债务利息及费用支出 | Q4: 其他支出
A5: 类 | B5: 款 | C5: 项
D7: 合计 | E7: =E8+E11+E14 -> 3360418.32 | F7: 0.00 | G7: 0.00 | H7: 0.00 | I7: 0.00 | J7: 3094138.32 | K7: 130000.00 | L7: 0.00 | M7: 0.00 | N7: 26280.00 | O7: 0.00 | P7: 0.00 | Q7: 110000.00
A8: 201 | E8: =E9 -> 3006328.08 | F8: 0.00 | G8: 0.00 | H8: 0.00 | I8: 0.00 | J8: 2740048.08 | K8: 130000.00 | L8: 0.00 | M8: 0.00 | N8: 26280.00 | O8: 0.00 | P8: 0.00 | Q8: 110000.00
B9: 13 | E9: 3006328.08 | F9: 0.00 | G9: 0.00 | H9: 0.00 | I9: 0.00 | J9: 2740048.08 | K9: 130000.00 | L9: 0.00 | M9: 0.00 | N9: 26280.00 | O9: 0.00 | P9: 0.00 | Q9: 110000.00
A10: 201 | B10: 13 | C10: 99 | D10: 其他商贸事务支出 | E10: 3006328.08 | F10: 0.00 | G10: 0.00 | H10: 0.00 | I10: 0.00 | J10: 2740048.08 | K10: 130000.00 | L10: 0.00 | M10: 0.00 | N10: 26280.00 | O10: 0.00 | P10: 0.00 | Q10: 110000.00
A11: 208 | E11: =E12 -> 202337.28 | F11: 0.00 | G11: 0.00 | H11: 0.00 | I11: 0.00 | J11: 202337.28 | K11: 0.00 | L11: 0.00 | M11: 0.00 | N11: 0.00 | O11: 0.00 | P11: 0.00 | Q11: 0.00
B12: 05 | E12: 202337.28 | F12: 0.00 | G12: 0.00 | H12: 0.00 | I12: 0.00 | J12: 202337.28 | K12: 0.00 | L12: 0.00 | M12: 0.00 | N12: 0.00 | O12: 0.00 | P12: 0.00 | Q12: 0.00
A13: 208 | B13: 05 | C13: 05 | D13: 机关事业单位基本养老保险缴费支出 | E13: 202337.28 | F13: 0.00 | G13: 0.00 | H13: 0.00 | I13: 0.00 | J13: 202337.28 | K13: 0.00 | L13: 0.00 | M13: 0.00 | N13: 0.00 | O13: 0.00 | P13: 0.00 | Q13: 0.00
A14: 221 | E14: =E15 -> 151752.96 | F14: 0.00 | G14: 0.00 | H14: 0.00 | I14: 0.00 | J14: 151752.96 | K14: 0.00 | L14: 0.00 | M14: 0.00 | N14: 0.00 | O14: 0.00 | P14: 0.00 | Q14: 0.00
B15: 02 | E15: 151752.96 | F15: 0.00 | G15: 0.00 | H15: 0.00 | I15: 0.00 | J15: 151752.96 | K15: 0.00 | L15: 0.00 | M15: 0.00 | N15: 0.00 | O15: 0.00 | P15: 0.00 | Q15: 0.00
A16: 221 | B16: 02 | C16: 01 | D16: 住房公积金 | E16: 151752.96 | F16: 0.00 | G16: 0.00 | H16: 0.00 | I16: 0.00 | J16: 151752.96 | K16: 0.00 | L16: 0.00 | M16: 0.00 | N16: 0.00 | O16: 0.00 | P16: 0.00 | Q16: 0.00

Sheet 专项
A2: 专项资金预算汇总表
A3: 单位名称临湘市市场建设服务中心 | I3: 单位：元
A4: 项目名称 | B4: 总计 | C4: 一般预算拨款 | E4: 纳入专户管理的非税收入拨款 | F4: 政府性基金拨款 | G4: 事业单位经营服务收入 | H4: 上级补助收入 | I4: 其他收入
C5: 经费拨款 | D5: 纳入预算管理的非税收入拨款
B6: =SUM(B7:B10) -> 3059671.80 | C6: 1440000.00 | D6: 1619671.80 | E6: 0.00 | F6: 0.00 | G6: 0.00 | H6: 0.00 | I6: 0.00
A7: 市场安全隐患改造经费 | B7: 1030000.00 | C7: 1030000.00 | D7: 0.00 | E7: 0.00 | F7: 0.00 | G7: 0.00 | H7: 0.00 | I7: 0.00
A8: 食品安全监督抽样和检验经费 | B8: 250000.00 | C8: 250000.00 | D8: 0.00 | E8: 0.00 | F8: 0.00 | G8: 0.00 | H8: 0.00 | I8: 0.00
A9: 征收成本 | B9: 1619671.80 | C9: 0.00 | D9: 1619671.80 | E9: 0.00 | F9: 0.00 | G9: 0.00 | H9: 0.00 | I9: 0.00
A10: 财贸学校遗留专项 | B10: 160000.00 | C10: 160000.00 | D10: 0.00 | E10: 0.00 | F10: 0.00 | G10: 0.00 | H10: 0.00 | I10: 0.00

Sheet 三公
A1: 一般公共预算“三公”经费预算表
A2: 单位名称临湘市市场建设服务中心 | G2: 单位：元
A3: 单位名称 | B3: 三公经费预算数(一般公共预算拨款)
B4: 小计 | C4: 公务接待费 | D4: 公务用车购置及运行费 | E4: 其中： | G4: 因公出国(境)费用
E5: 公务用车购置费 | F5: 公务用车运行维护费
A6: 合计 | B6: =B7 -> 78800.00 | C6: 50800.00 | D6: 28000.00 | E6: 0.00 | F6: 28000.00 | G6: 0.00
B7: 78800.00 | C7: 50800.00 | D7: 28000.00 | E7: 0.00 | F7: 28000.00 | G7: 0.00
A8: 临湘市市场建设服务中心 | B8: 78800.00 | C8: 50800.00 | D8: 28000.00 | E8: 0.00 | F8: 28000.00 | G8: 0.00

Sheet 绩效目标整体申报
A1: 整体支出绩效目标申报表
A2: 单位名称临湘市市场建设服务中心 | V2: 单位：万元
A3: 单位编码 | B3: 单位名称 | C3: 预算绩效管理联络员 | D3: 联系电话 | E3: 人员编制数 | F3: 实有人数 | G3: 单位职能 | H3: 单位年度收入预算（万元） | M3: 单位年度支出预算（万元） | T3: 部门整体支出年度绩效目标 | U3: 其他说明的问题 | V3: 财政部门审核意见
H4: 收入合计 | I4: 公共财政拨款 | J4: 政府性基金拨款 | K4: 非税收入拨款 | L4: 其他拨款 | M4: 支出合计 | N4: 基本支出 | O4: 项目支出 | P4: 其中三公经费预算（万元） | Q4: 公务用车运行和购置费 | R4: 公务接待费 | S4: 因公出国（境）费
A5: ** | B5: ** | C5: ** | D5: ** | E5: 1 | F5: 2 | G5: 3 | H5: 4 | I5: 5 | J5: 6 | K5: 7 | L5: 8 | M5: 9 | N5: 10 | O5: 11 | P5: 12 | Q5: 13 | R5: 14 | S5: 15 | T5: 16 | U5: 17 | V5: 18
A6: 801006 | B6: 临湘市市场建设服务中心 | C6: 刘艳 | D6: 3766186 | E6: 160 | F6: 160 | G6: 为市场建设提供管理保障。负责贯彻落实市委、市政府有关市场建设管理的政策组织、落实市场网点的建设规划、协同相关职能部门对城区街道、路面的游摊、散贩进行整治和规范。 | H6: 1,844.04 | I6: 1,836.04 | J6: 0.00 | K6: 0.00 | L6: 8.00 | M6: 1,844.04 | N6: 1,538.07 | O6: 305.97 | P6: 7.88 | Q6: 2.80 | R6: 5.08 | S6: 0.00 | T6: 1、加强单位职能建设，提高单位履职水平和能力；2、加强预决算公开力度，严控三公经费；3、合理高效利用资金，使资金广泛服务于全市社会经济发展。

Sheet 项目绩效目标申报表
A2: 项 目 绩 效 目 标 申 报 表
A4: 单位编码 | B4: 单位名称 | C4: 主管部门 | D4: 项目起止时间 | E4: 项目属性 | F4: 项目类型 | G4: 项目负责人 | H4: 联系电话 | I4: 项目概况 | J4: 项目立项依据 | K4: 项目资金情况 | V4: 单位已有（或拟定）保证项目实施的制度与措施 | W4: 绩效目标 | AZ4: 其他说明的问题 | BA4: 财政部门审核意见
K5: 项目资金申请 | S5: 支出明细预算 | W5: 长期目标 | X5: 年度目标 | Y5: 产出指标 | AK5: 效益指标
K6: 市级资金 | M6: 省级资金 | O6: 中央资金 | Q6: 自有资金 | S6: 上年度安排资金 | T6: 本年度申请资金 | U6: 测算依据及说明 | Y6: 数量指标 | AB6: 质量指标 | AE6: 时效指标 | AH6: 成本指标 | AK6: 经济效益指标 | AN6: 社会效益指标 | AQ6: 生态效益指标 | AT6: 可持续指标 | AW6: 社会公众或服务对象满意度
K7: 上年度安排资金（市级） | L7: 本年度申请资金（市级） | M7: 上年度安排资金（省级） | N7: 本年度申请资金（省级） | O7: 上年度安排资金（中央） | P7: 本年度申请资金（中央） | Q7: 上年度安排资金（自有） | R7: 本年度申请资金（自有） | Y7: 指标内容（数量） | Z7: 指标值（数量） | AA7: 备注（数量） | AB7: 指标内容（质量） | AC7: 指标值（质量） | AD7: 备注（质量） | AE7: 指标内容（时效） | AF7: 指标值（时效） | AG7: 备注（时效） | AH7: 指标内容（成本） | AI7: 指标值（成本） | AJ7: 备注（成本） | AK7: 指标内容（经济） | AL7: 指标值（经济） | AM7: 备注（经济） | AN7: 指标内容（社会） | AO7: 指标值（社会） | AP7: 备注（社会） | AQ7: 指标内容（生态） | AR7: 指标值（生态） | AS7: 备注（生态） | AT7: 指标内容（可持续） | AU7: 指标值（可持续） | AV7: 备注（可持续） | AW7: 指标内容 | AX7: 指标值 | AY7: 备注
A9: ** | B9: ** | C9: ** | D9: ** | E9: ** | F9: ** | G9: ** | H9: ** | I9: ** | J9: ** | K9: 1 | L9: 2 | M9: 3 | N9: 4 | O9: 5 | P9: 6 | Q9: 7 | R9: 8 | S9: 9 | T9: 10 | U9: 11 | V9: 12 | W9: 13 | X9: 14 | Y9: 15 | Z9: 16 | AA9: 17 | AB9: 18 | AC9: 19 | AD9: 20 | AE9: 21 | AF9: 22 | AG9: 23 | AH9: 24 | AI9: 25 | AJ9: 26 | AK9: 27 | AL9: 28 | AM9: 29 | AN9: 30 | AO9: 31 | AP9: 32 | AQ9: 33 | AR9: 34 | AS9: 35 | AT9: 36 | AU9: 37 | AV9: 38 | AW9: 39 | AX9: 40 | AY9: 41
B10: 合计 | K10: =SUM(K11:K14) -> 359.30 | L10: =SUM(L11:L14) -> 305.90 | M10: 0.00 | N10: 0.00 | O10: 0.00 | P10: 0.00 | Q10: 0.00 | R10: 0.00 | S10: =SUM(S11:S14) -> 359.30 | T10: =SUM(T11:T14) -> 305.90 | U10: 0.00 | V10: 0.00 | W10: 0.00 | X10: 0.00 | Y10: 0.00 | Z10: 305.90 | AA10: 305.90 | AB10: 0.00 | AC10: 0.00 | AD10: 0.00 | AE10: 0.00 | AF10: 305.90 | AG10: 305.90 | AH10: 0.00 | AI10: 305.90 | AJ10: 305.90 | AK10: 0.00 | AL10: 0.00 | AM10: 0.00 | AN10: 0.00 | AO10: 0.00 | AP10: 0.00 | AQ10: 0.00 | AR10: 0.00 | AS10: 0.00 | AT10: 0.00 | AU10: 0.00 | AV10: 0.00 | AW10: 0.00 | AX10: 0.00 | AY10: 0.00 | AZ10: 无
A11: 801006 | B11: 临湘市市场建设服务中心 | C11: 外经股 | D11: 2020年1月-12月 | E11: 延续项目 | F11: 其他专项类 | G11: 余壬子 | H11: 13974016936 | I11: 纳入部门预算的非税收入用于支付市场各项税费等征收成本 | J11: 业务工作需要 | K11: 205.30 | L11: 161.90 | M11: 0.00 | N11: 0.00 | O11: 0.00 | P11: 0.00 | Q11: 0.00 | R11: 0.00 | S11: 205.30 | T11: 161.90 | U11: 2020年纳入预算管理的非税收入 | V11: 纳入部门预算的非税收入用于支付市场各项税费等征收成本 | W11: 纳入预算管理的非税收入 | X11: 纳入预算管理的非税收入 | Y11: 严格按预算执行 | Z11: 161.90 | AA11: 161.90 | AB11: 取得较好成效 | AC11: 100% | AD11: 100% | AE11: 按时间节点完成 | AF11: 161.90 | AG11: 161.90 | AH11: 用于支付市场各项税费等征收成本 | AI11: 161.90 | AJ11: 161.90 | AK11: 保证市场正常运转 | AL11: ≧90% | AM11: ≧90% | AN11: 重点单位安全和谐稳定。 | AO11: 90%的满意率 | AP11: 90%的满意率 | AQ11: 重点单位安全和谐稳定。 | AR11: ≧90% | AS11: ≧90% | AT11: 保证市场正常运转 | AU11: ≧100% | AV11: ≧100% | AW11: 市场正常运转，给市民带来便利。 | AX11: 满意度达到90以上。 | AY11: 满意度达到90以上。 | AZ11: 无
A12: 801006 | B12: 临湘市市场建设服务中心 | C12: 外经股 | D12: 2020年1月-12月 | E12: 延续项目 | F12: 其他专项类 | G12: 权文良 | H12: 15700838888 | I12: 市场安全隐患整改经费 | J12: 业务工作需要 | K12: 103.00 | L12: 103.00 | M12: 0.00 | N12: 0.00 | O12: 0.00 | P12: 0.00 | Q12: 0.00 | R12: 0.00 | S12: 103.00 | T12: 103.00 | U12: 市场年代久，存在安全隐患 | V12: 积极整改市场安全隐患，安装市场监控装置，消防喷淋装置，各类消防设施的配置安装。 | W12: 确保市场安全稳定运行 | X12: 确保市场安全稳定运行 | Y12: 严格按预算执行 | Z12: 103.00 | AA12: 103.00 | AB12: 消防设施配置合理，提高经营户和顾客的满意度 | AC12: 100% | AD12: 厉行节约、弃分发挥资金效益。 | AE12: 按时间节点完成 | AF12: 103.00 | AG12: 103.00 | AH12: 各市场安全隐患进行整改，按要求配齐先消防设施。 | AI12: 103.00 | AJ12: 103.00 | AK12: 确保市场安全稳定运行 | AL12: ≧90% | AM12: ≧90% | AN12: 为全市人民提供了安全稳定的经商购物环境 | AO12: 90%的满意率 | AP12: 90%的满意率 | AQ12: 为全市人民提供了安全稳定的经商购物环境 | AR12: ≧90% | AS12: ≧90% | AT12: 确保市场安全稳定运行 | AU12: ≧90% | AV12: ≧90% | AW12: 消防设施配置合理，提高经营户和顾客的满意度 | AX12: 满意度达到90以上。 | AY12: 满意度达到90以上。 | AZ12: 无
A13: 801006 | B13: 临湘市市场建设服务中心 | C13: 外经股 | D13: 2020年1月-12月 | E13: 延续项目 | F13: 其他专项类 | G13: 余壬子 | H13: 13974016936 | I13: 财贸学校遗留专项 | J13: 业务工作需要 | K13: 16.00 | L13: 16.00 | M13: 0.00 | N13: 0.00 | O13: 0.00 | P13: 0.00 | Q13: 0.00 | R13: 0.00 | S13: 16.00 | T13: 16.00 | U13: 财贸学校移交人员的人员经费 | V13: 移交人员的人员经费 | W13: 做好移交人员经费保障 | X13: 做好移交人员经费保障 | Y13: 严格按预算执行 | Z13: 16.00 | AA13: 16.00 | AB13: 移交人员的人员经费 | AC13: 100% | AD13: 全部安排到位 | AE13: 移交人员的人员经费 | AF13: 16.00 | AG13: 16.00 | AH13: 移交人员的人员经费 | AI13: 16.00 | AJ13: 16.00 | AK13: 移交人员的人员经费 | AL13: ≧90% | AM13: ≧90% | AN13: 移交人员的人员经费 | AO13: 90%的满意率 | AP13: 90%的满意率 | AQ13: 移交人员的人员经费 | AR13: ≧90% | AS13: ≧90% | AT13: 移交人员的人员经费 | AU13: ≧100% | AV13: ≧100% | AW13: 移交人员的人员经费 | AX13: 满意度达到90以上。 | AY13: 满意度达到90以上。 | AZ13: 无
A14: 801006 | B14: 临湘市市场建设服务中心 | C14: 外经股 | D14: 2020年1月-12月 | E14: 延续项目 | F14: 其他专项类 | G14: 戴昕 | H14: 13974094666 | I14: 食品安全监督抽样和检验经费 | J14: 业务工作需要 | K14: 35.00 | L14: 25.00 | M14: 0.00 | N14: 0.00 | O14: 0.00 | P14: 0.00 | Q14: 0.00 | R14: 0.00 | S14: 35.00 | T14: 25.00 | U14: 农贸市场蔬菜农残检测 | V14: 让市民吃上安全放心的蔬菜，确保舌尖上的安全 | W14: 确保市民吃上安全放心的蔬菜 | X14: 确保市民吃上安全放心的蔬菜 | Y14: 严格按预算执行 | Z14: 25.00 | AA14: 25.00 | AB14: 农贸市场蔬菜农残检测 | AC14: 100% | AD14: 让市民吃得放心 | AE14: 按时间节点完成 | AF14: 25.00 | AG14: 25.00 | AH14: 农贸市场蔬菜农残检测 | AI14: 25.00 | AJ14: 25.00 | AK14: 农贸市场蔬菜农残检测 | AL14: ≧90% | AM14: ≧90% | AN14: 农贸市场蔬菜农残检测 | AO14: 90%的满意率 | AP14: 90%的满意率 | AQ14: 农贸市场蔬菜农残检测 | AR14: ≧90% | AS14: ≧90% | AT14: 农贸市场蔬菜农残检测 | AU14: ≧100% | AV14: ≧100% | AW14: 农贸市场蔬菜农残检测 | AX14: 满意度达到90以上。 | AY14: 满意度达到90以上。 | AZ14: 无
BB19: 0 | BC19: 0

Sheet 5-政府采购预算表的复制
O1: 录入05表
A2: 2020年部门预算政府采购预算表
O3: 单位：元
A4: 单位编码 | B4: 单位名称 | C4: 类别 | D4: 采购项目 | E4: 采购品目 | F4: 采购数量 | G4: 计量单位 | H4: 总计 | I4: 经费拨款 | J4: 纳入预算管理的非税收入 | K4: 纳入专户管理的非税收入 | L4: 政府性基金 | M4: 上级补助收入 | N4: 其他收入 | O4: 提前下达
A6: 801006 | B6: 临湘市市场建设服务中心 | D6: 无 | H6: 0.00 | I6: 0.00 | J6: 0.00 | K6: 0.00 | L6: 0.00 | M6: 0.00 | N6: 0.00 | O6: 0.00

Sheet 绩效目标-附表
A1: 绩效目标申报表-附表
E2: 单位：万元
A3: 单位名称 | B3: 项目名称 | C3: 预算人数及其他 | D3: 标准或依据 | E3: 金额(万元)
A4: 临湘市市场建设服务中心 | B4: 工资福利支出 | C4: 160人 | D4: 临财预（2019）57号文 | E4: 1372.15
A5: 临湘市市场建设服务中心 | B5: 商品和服务支出 | C5: 160人 | D5: 临财预（2019）57号文 | E5: 163.3
A6: 临湘市市场建设服务中心 | B6: 对个人和家庭的补助 | C6: 6人 | D6: 临财预（2019）57号文 | E6: 2.62
A7: 临湘市市场建设服务中心 | B7: 征收成本 | D7: 临财预（2019）57号文 | E7: 161.97
A8: 临湘市市场建设服务中心 | B8: 财贸学校遗留专项 | D8: 临财预（2019）57号文 | E8: 16.00
A9: 临湘市市场建设服务中心 | B9: 食品安全监督抽样和检验经费 | D9: 临财预（2019）57号文 | E9: 25.00
A10: 临湘市市场建设服务中心 | B10: 市场安全隐患改造经费 | D10: 临财预（2019）57号文 | E10: 103.00
